bitfinex/quotes_BTCUSD_20250920
["timestamp","ask_amount","ask_price","bid_price","bid_amount"]
[1758342874736,1.33251046,115630.0,115620.0,4.706e-05]
[1758342874993,1.33259046,115630.0,115620.0,4.706e-05]
[1758342890568,1.33258749,115630.0,115620.0,4.706e-05]
[1758342892395,1.33266749,115630.0,115620.0,4.706e-05]
[1758342896499,1.06386749,115630.0,115620.0,4.706e-05]
[1758342896710,1.33266749,115630.0,115620.0,4.706e-05]
[1758342901910,1.27784433,115630.0,115620.0,4.706e-05]
[1758342902130,1.33101109,115630.0,115620.0,4.706e-05]
[1758342903902,1.65464218,115630.0,115620.0,4.706e-05]
[1758342909296,1.65464843,115630.0,115620.0,4.706e-05]
[1758342913756,1.36129843,115630.0,115620.0,0.00203706]
[1758342913980,0.63956972,115630.0,115620.0,0.09040673]
[1758342914207,0.37308423,115630.0,115620.0,0.6282558]
[1758342914421,0.30192423,115630.0,115620.0,0.61095776]
[1758342914638,0.03308423,115630.0,115620.0,0.61095776]
[1758342914864,0.02700519,115630.0,115620.0,0.93460834]
[1758342915069,0.02700519,115630.0,115620.0,0.61095776]
[1758342915284,0.36700519,115630.0,115620.0,0.61095776]
[1758342915496,0.36700519,115630.0,115620.0,0.28730718]
[1758342915701,0.02700519,115630.0,115620.0,0.61095776]
[1758342915909,0.36700519,115630.0,115620.0,0.61095776]
[1758342924132,0.341,115630.0,115620.0,0.61095776]
[1758342925093,0.341,115630.0,115620.0,0.87971776]
[1758342925468,0.341,115630.0,115620.0,0.87905776]
[1758342925666,0.341,115630.0,115620.0,1.14781776]
[1758342928682,0.341,115630.0,115620.0,0.82416718]
[1758342928899,0.341,115630.0,115620.0,1.14781776]
[1758342929758,0.341,115630.0,115620.0,0.82416718]
[1758342930338,0.341,115630.0,115620.0,1.14781776]
[1758342932141,0.001,115630.0,115620.0,1.47146834]
[1758342932353,0.001,115630.0,115620.0,1.47142834]
[1758342933047,0.001,115630.0,115620.0,1.47152834]
[1758342933674,0.001,115630.0,115620.0,0.82422718]
[1758342933884,0.001,115630.0,115620.0,1.14787776]
[1758342934100,0.001,115630.0,115620.0,1.47152834]
[1758342934712,0.001,115630.0,115620.0,1.14787776]
[1758342935069,7.514e-05,115630.0,115620.0,1.14787776]
[1758342935502,7.514e-05,115630.0,115620.0,1.47152834]
[1758342938080,7.514e-05,115630.0,115620.0,1.20280834]
[1758342938282,7.514e-05,115630.0,115620.0,1.14799776]
[1758342942807,7.514e-05,115630.0,115620.0,0.87915776]
[1758342942936,7.514e-05,115630.0,115620.0,1.14799776]
[1758342946876,7.514e-05,115630.0,115620.0,1.47164834]
[1758342947509,7.514e-05,115630.0,115620.0,1.47160834]
[1758342947736,7.514e-05,115630.0,115620.0,1.47172834]
[1758342952688,7.514e-05,115630.0,115620.0,1.47168834]
[1758342953358,7.514e-05,115630.0,115620.0,1.14803776]
[1758342953543,7.514e-05,115630.0,115620.0,0.87915776]
[1758342953974,7.514e-05,115630.0,115620.0,1.14803776]
[1758342955409,7.514e-05,115630.0,115620.0,1.47168834]
[1758342955629,7.514e-05,115630.0,115620.0,0.82438718]
[1758342955839,7.514e-05,115630.0,115620.0,1.14803776]
[1758342958339,7.514e-05,115630.0,115620.0,1.47168834]
[1758342960757,7.514e-05,115630.0,115620.0,1.20280834]
[1758342960955,7.514e-05,115630.0,115620.0,1.47172834]
[1758342963832,7.514e-05,115630.0,115620.0,1.14784563]
[1758342966491,0.37593074,115640.0,115620.0,1.14784563]
[1758342966632,0.37593074,115640.0,115630.0,0.52719516]
[1758342966874,0.37593074,115640.0,115630.0,0.79529516]
[1758342967095,0.37808074,115640.0,115630.0,0.79529516]
[1758342968622,0.37908074,115640.0,115630.0,0.79529516]
[1758342969570,0.37808074,115640.0,115630.0,0.79529516]
[1758342969778,0.37808074,115640.0,115630.0,0.79729516]
[1758342970320,0.37808074,115640.0,115630.0,0.79929516]
[1758342972003,0.70149919,115640.0,115630.0,0.79929516]
[1758342973188,0.70149919,115640.0,115630.0,0.79925516]
[1758342978351,0.70149919,115640.0,115630.0,0.53033516]
[1758342978511,0.70149919,115640.0,115630.0,0.79925516]
[1758342978893,0.37808074,115640.0,115630.0,0.79925516]
[1758342979103,0.70149919,115640.0,115630.0,0.79925516]
[1758342981026,0.70149919,115640.0,115630.0,0.79921516]
[1758342984120,0.72749855,115640.0,115630.0,0.79921516]
[1758342986534,0.4040801,115640.0,115630.0,0.79921516]
[1758342986737,0.72749855,115640.0,115630.0,0.79921516]
[1758342992046,0.4040801,115640.0,115630.0,0.79921516]
[1758342992257,0.72749855,115640.0,115630.0,0.79921516]
[1758342995922,0.72749855,115640.0,115630.0,0.80133516]
[1758343010391,0.71884781,115640.0,115630.0,0.80133516]
[1758343014099,0.72752284,115640.0,115630.0,0.80133516]
[1758343021147,0.40410439,115640.0,115630.0,0.80133516]
[1758343021453,0.72752284,115640.0,115630.0,0.80133516]
[1758343023611,0.70328284,115640.0,115630.0,0.79921516]
[1758343023823,0.72705284,115640.0,115630.0,0.79921516]
[1758343025842,0.72709544,115640.0,115630.0,0.79921516]
[1758343041919,0.40363439,115640.0,115630.0,0.79921516]
[1758343042141,1.05055649,115640.0,115630.0,0.79921516]
[1758343045194,0.72709544,115640.0,115630.0,0.79921516]
[1758343057759,1.05055649,115640.0,115630.0,0.79921516]
[1758343058383,0.40363439,115640.0,115630.0,0.80122516]
[1758343058582,1.05055649,115640.0,115630.0,0.80122516]
[1758343059166,0.40363439,115640.0,115630.0,0.80122516]
[1758343059405,1.05055649,115640.0,115630.0,0.80122516]
[1758343061602,0.72709544,115640.0,115630.0,0.80122516]
[1758343075168,0.02599936,115640.0,115630.0,1.12764621]
[1758343075430,0.01456767,115670.0,115660.0,0.17292062]
[1758343075659,0.01456767,115670.0,115660.0,0.53175029]
[1758343075660,0.00848073,115670.0,115660.0,0.53175029]
[1758343075905,0.38120901,115680.0,115670.0,0.17290567]
[1758343076130,0.38120901,115680.0,115670.0,0.25817534]
[1758343076131,1.04944689,115680.0,115670.0,0.25817534]
[1758343076342,0.70944689,115680.0,115670.0,0.25817534]
[1758343076566,0.70944689,115680.0,115670.0,0.67716639]
[1758343076567,0.02599102,115680.0,115670.0,0.67716639]
[1758343076797,0.3552259,115700.0,115690.0,0.17287578]
[1758343077024,0.35122808,115700.0,115690.0,0.52674545]
[1758343077246,1.0494986,115700.0,115690.0,0.52674545]
[1758343077915,0.69831755,115700.0,115690.0,0.26019545]
[1758343078149,0.69831755,115700.0,115690.0,0.55277545]
[1758343079007,0.70034755,115700.0,115690.0,0.55377545]
[1758343079279,0.72299755,115700.0,115690.0,0.55377545]
[1758343079512,0.72299755,115700.0,115690.0,0.52979545]
[1758343079513,0.72603755,115700.0,115690.0,0.52979545]
[1758343079883,0.72603755,115700.0,115690.0,0.52874545]
[1758343080089,1.0494986,115700.0,115690.0,0.52874545]
[1758343080691,1.0494986,115700.0,115690.0,0.26014545]
[1758343080924,1.0494986,115700.0,115690.0,0.52870545]
[1758343082549,1.0494986,115700.0,115690.0,0.26014545]
[1758343082757,1.0494986,115700.0,115690.0,0.52870545]
[1758343083179,0.4025765,115700.0,115690.0,0.26014545]
[1758343083395,0.72603755,115700.0,115690.0,0.52870545]
[1758343083774,0.69831755,115700.0,115690.0,0.53066545]
[1758343084066,0.69831755,115700.0,115690.0,0.55705545]
[1758343084320,0.69831755,115700.0,115690.0,0.55411545]
[1758343084529,0.68949508,115700.0,115690.0,0.55705545]
[1758343084768,0.02603403,115700.0,115690.0,0.8805165]
[1758343084986,4.703e-05,115700.0,115690.0,0.8805165]
[1758343085449,4.703e-05,115700.0,115690.0,0.94526059]
[1758343086097,4.703e-05,115700.0,115690.0,0.97124376]
[1758343086492,4.703e-05,115700.0,115690.0,0.97134376]
[1758343088031,4.703e-05,115700.0,115690.0,0.64788271]
[1758343088298,4.703e-05,115700.0,115690.0,0.97093754]
[1758343088756,4.703e-05,115700.0,115690.0,0.64788271]
[1758343091282,0.00608024,115700.0,115690.0,0.64788271]
[1758343091542,4.703e-05,115700.0,115690.0,0.64788271]
[1758343092140,4.703e-05,115700.0,115690.0,1.00108944]
[1758343093118,4.703e-05,115700.0,115690.0,0.73252944]
[1758343093366,0.00607794,115700.0,115690.0,1.00012944]
[1758343093573,0.00607794,115700.0,115690.0,0.99912944]
[1758343093793,0.00607794,115700.0,115690.0,0.73452944]
[1758343094070,0.00607794,115700.0,115690.0,1.01112944]
[1758343094739,0.00607794,115700.0,115690.0,0.74252944]
[1758343094897,0.00607794,115700.0,115690.0,1.01108944]
[1758343095283,0.00607794,115700.0,115690.0,0.68803461]
[1758343095495,0.00607803,115700.0,115690.0,1.01108944]
[1758343100581,0.00607803,115700.0,115690.0,1.10452944]
[1758343104184,0.00607803,115700.0,115690.0,1.07854627]
[1758343106219,0.00607803,115700.0,115690.0,1.07850627]
[1758343106952,0.00607803,115700.0,115690.0,1.07846627]
[1758343107308,4.703e-05,115700.0,115690.0,1.07846627]
[1758343107509,0.00611582,115700.0,115690.0,1.07846627]
[1758343109212,0.00611582,115700.0,115690.0,1.34656627]
[1758343109662,0.00611582,115700.0,115690.0,1.02351144]
[1758343109791,0.00611582,115700.0,115690.0,1.34656627]
[1758343111182,0.00611582,115700.0,115690.0,1.02351144]
[1758343111426,0.00611582,115700.0,115690.0,1.34656627]
[1758343112576,0.00611582,115700.0,115690.0,1.07808627]
[1758343112786,0.00611582,115700.0,115690.0,1.34652627]
[1758343113595,0.00111582,115700.0,115690.0,1.34652627]
[1758343115664,0.00111582,115700.0,115690.0,1.07808627]
[1758343115862,0.00111582,115700.0,115690.0,1.34652627]
[1758343116719,0.00111582,115700.0,115690.0,1.07808627]
[1758343116847,0.00326582,115700.0,115690.0,1.05169627]
[1758343117090,0.00326582,115700.0,115690.0,1.02183144]
[1758343117540,0.35396065,115700.0,115690.0,0.96496954]
[1758343117738,0.3796094,115700.0,115690.0,0.96496954]
[1758343118188,0.35396065,115700.0,115690.0,0.96496954]
[1758343118978,0.03090582,115700.0,115690.0,0.96496954]
[1758343119185,0.03090582,115700.0,115690.0,0.95296954]
[1758343119596,0.03090582,115700.0,115690.0,0.95496954]
[1758343120220,0.00632582,115700.0,115690.0,0.96093954]
[1758343120454,0.00111582,115700.0,115690.0,1.31722627]
[1758343120674,0.00111582,115700.0,115690.0,1.34197627]
[1758343120874,0.00111582,115700.0,115690.0,1.01892144]
[1758343121314,0.00111582,115700.0,115690.0,1.34197627]
[1758343122349,0.00111582,115700.0,115690.0,1.01892144]
[1758343122560,0.00111582,115700.0,115690.0,1.34197627]
[1758343123171,0.00111582,115700.0,115690.0,1.01892144]
[1758343123391,0.00111582,115700.0,115690.0,1.34197627]
[1758343124269,0.00111582,115700.0,115690.0,1.33889627]
[1758343124477,0.00111582,115700.0,115690.0,1.01584144]
[1758343127575,0.02764,115710.0,115700.0,0.17286084]
[1758343127797,0.03371521,115710.0,115700.0,0.52661051]
[1758343128011,0.03586521,115710.0,115700.0,0.52661051]
[1758343128642,0.03586521,115710.0,115700.0,0.52671051]
[1758343129463,0.03586521,115710.0,115700.0,0.52771051]
[1758343129928,0.03586521,115710.0,115700.0,0.52871051]
[1758343131208,0.02979,115710.0,115700.0,0.52871051]
[1758343132566,0.02979,115710.0,115700.0,0.53068051]
[1758343132705,0.02979,115710.0,115700.0,0.55543051]
[1758343132903,0.02979,115710.0,115700.0,0.82353051]
[1758343133126,0.02979,115710.0,115700.0,0.82253051]
[1758343133321,0.02979,115710.0,115700.0,0.82453051]
[1758343133527,0.02979,115710.0,115700.0,0.82353051]
[1758343133959,0.34706,115720.0,115700.0,0.82353051]
[1758343134205,0.00710703,115720.0,115710.0,0.27540016]
[1758343134407,0.00925703,115720.0,115710.0,0.26008557]
[1758343134616,0.03383703,115720.0,115710.0,0.26008557]
[1758343135421,0.03783703,115720.0,115710.0,0.26008557]
[1758343135642,0.03783703,115720.0,115710.0,0.27520832]
[1758343135839,0.03783703,115720.0,115710.0,0.26008557]
[1758343136111,0.03783703,115720.0,115710.0,0.25811557]
[1758343136329,0.03783703,115720.0,115710.0,0.25911557]
[1758343136496,0.36089186,115720.0,115710.0,0.25911557]
[1758343138763,0.03783703,115720.0,115710.0,0.25911557]
[1758343139325,0.01325703,115720.0,115710.0,0.26121557]
[1758343139506,0.01325703,115720.0,115710.0,0.28533557]
[1758343139507,0.03627703,115720.0,115710.0,0.28533557]
[1758343140330,0.01019703,115720.0,115710.0,0.26121557]
[1758343140534,0.33325186,115720.0,115710.0,0.28533557]
[1758343140761,0.03327703,115720.0,115710.0,0.28533557]
[1758343140959,0.03636703,115720.0,115710.0,0.25911557]
[1758343142646,0.35942186,115720.0,115710.0,0.25911557]
[1758343142881,0.35942186,115720.0,115710.0,0.52755557]
[1758343147442,0.35942186,115720.0,115710.0,0.25911557]
[1758343147646,0.38507061,115720.0,115710.0,0.52755557]
[1758343149896,0.70816014,115720.0,115710.0,0.52755557]
[1758343152257,0.68251139,115720.0,115710.0,0.52755557]
[1758343154595,0.68251139,115720.0,115710.0,0.52655557]
[1758343154893,0.68251139,115720.0,115710.0,0.52755557]
[1758343155512,0.68251139,115720.0,115710.0,0.52655557]
[1758343155716,0.68251139,115720.0,115710.0,0.52755557]
[1758343156681,0.68251139,115720.0,115710.0,0.79565557]
[1758343158332,0.03636703,115720.0,115710.0,0.79768557]
[1758343158566,0.68251139,115720.0,115710.0,0.79768557]
[1758343162147,0.35943921,115720.0,115710.0,0.79768557]
[1758343162602,0.35543921,115720.0,115710.0,0.79768557]
[1758343162813,0.35743921,115720.0,115710.0,0.79768557]
[1758343163436,0.35743921,115720.0,115710.0,0.79668557]
[1758343163850,0.35743921,115720.0,115710.0,0.79768557]
[1758343164065,0.32911921,115720.0,115710.0,0.82049557]
[1758343164270,0.32711921,115720.0,115710.0,0.81949557]
[1758343164616,0.32711921,115720.0,115710.0,0.82349557]
[1758343165015,0.00600703,115720.0,115710.0,0.82349557]
[1758343165248,0.32907921,115720.0,115710.0,0.82349557]
[1758343165809,0.00404703,115720.0,115710.0,0.82642557]
[1758343166018,0.32711921,115720.0,115710.0,0.82642557]
[1758343173623,0.00404703,115720.0,115710.0,1.14949775]
[1758343174257,0.00404703,115720.0,115710.0,1.17964965]
[1758343174435,0.00404703,115720.0,115710.0,0.85657747]
[1758343174632,0.00404703,115720.0,115710.0,1.17964965]
[1758343175230,0.00404703,115720.0,115710.0,1.17974965]
[1758343191167,0.00404703,115720.0,115710.0,1.17970965]
[1758343194465,0.00404703,115720.0,115710.0,1.27314965]
[1758343198944,0.00404703,115720.0,115710.0,0.95007747]
[1758343199153,0.00404703,115720.0,115710.0,1.27021965]
[1758343199710,0.32920921,115720.0,115710.0,0.65593747]
[1758343199919,0.35553921,115720.0,115710.0,0.92230747]
[1758343200364,0.35553921,115720.0,115710.0,0.65390747]
[1758343200537,0.67861139,115720.0,115710.0,0.89215557]
[1758343200772,0.03246703,115720.0,115710.0,0.89215557]
[1758343200973,0.35553921,115720.0,115710.0,0.89215557]
[1758343202739,0.33234921,115720.0,115710.0,0.89215557]
[1758343205387,0.33234921,115720.0,115710.0,0.62612557]
[1758343206024,0.32927921,115720.0,115710.0,0.62612557]
[1758343206221,0.00620703,115720.0,115710.0,0.62612557]
[1758343206627,0.32927921,115720.0,115710.0,0.62612557]
[1758343207609,0.33241921,115720.0,115710.0,0.62409557]
[1758343207752,0.35560921,115720.0,115710.0,0.62409557]
[1758343208194,0.03253703,115720.0,115710.0,0.62409557]
[1758343208396,0.35560921,115720.0,115710.0,0.62409557]
[1758343209571,0.35030921,115720.0,115710.0,0.62409557]
[1758343209768,0.35560921,115720.0,115710.0,0.62409557]
[1758343209970,0.03253703,115720.0,115710.0,0.62409557]
[1758343212357,0.00404703,115720.0,115710.0,0.62616557]
[1758343212570,0.00404703,115720.0,115710.0,0.65276557]
[1758343214811,0.00404703,115720.0,115710.0,0.97574986]
[1758343215195,0.00404703,115720.0,115710.0,0.65276557]
[1758343215372,0.00404703,115720.0,115710.0,0.68291747]
[1758343215583,0.00404703,115720.0,115710.0,1.00590176]
[1758343218038,0.00404703,115720.0,115710.0,0.68291747]
[1758343219456,0.00404703,115720.0,115710.0,1.00590176]
[1758343222001,0.00404703,115720.0,115710.0,1.27400176]
[1758343228900,0.00404703,115720.0,115710.0,0.95101747]
[1758343232086,0.00404703,115720.0,115710.0,1.27400176]
[1758343232903,0.00404703,115720.0,115710.0,0.95101747]
[1758343233101,0.00404703,115720.0,115710.0,1.27400176]
[1758343234118,0.00404703,115720.0,115710.0,0.95101747]
[1758343234338,0.00404703,115720.0,115710.0,1.27400176]
[1758343236683,0.00404703,115720.0,115710.0,1.25045176]
[1758343236889,0.00404703,115720.0,115710.0,1.27539176]
[1758343237521,0.00404703,115720.0,115710.0,1.00695176]
[1758343237729,0.00404703,115720.0,115710.0,1.27535176]
[1758343238052,0.00404703,115720.0,115710.0,1.24736176]
[1758343238393,0.00404703,115720.0,115710.0,1.27216176]
[1758343238797,0.00404703,115720.0,115710.0,1.27535176]
[1758343241352,0.00404703,115720.0,115710.0,1.00725176]
[1758343257948,0.00404703,115720.0,115710.0,0.68426747]
[1758343258182,0.00404703,115720.0,115710.0,1.00406176]
[1758343258949,0.00404703,115720.0,115710.0,1.00715176]
[1758343265611,0.00404703,115720.0,115710.0,1.00406176]
[1758343265849,0.00610703,115720.0,115710.0,1.00406176]
[1758343266056,0.03316703,115720.0,115710.0,0.97926176]
[1758343266510,0.00610703,115720.0,115710.0,1.00211176]
[1758343266735,0.00404703,115720.0,115710.0,1.00211176]
[1758343266955,0.00404703,115720.0,115710.0,1.00532176]
[1758343267922,0.03316703,115720.0,115710.0,0.65432747]
[1758343271823,0.03316703,115720.0,115710.0,0.97727848]
[1758343275568,0.03316703,115720.0,115710.0,0.97731848]
[1758343277252,0.03316703,115720.0,115710.0,0.65436747]
[1758343277436,0.03316703,115720.0,115710.0,0.97731848]
[1758343278320,0.35611804,115720.0,115710.0,0.65432747]
[1758343279738,0.35611804,115720.0,115710.0,0.38580747]
[1758343279941,0.35611804,115720.0,115710.0,0.65504747]
[1758343282020,0.03316703,115720.0,115710.0,0.65504747]
[1758343282245,0.35611804,115720.0,115710.0,0.65504747]
[1758343284776,0.35611804,115720.0,115710.0,0.68102428]
[1758343285216,0.03316703,115720.0,115710.0,0.68102428]
[1758343285423,0.35611804,115720.0,115710.0,0.68102428]
[1758343285854,0.03316703,115720.0,115710.0,0.68102428]
[1758343286033,0.35611804,115720.0,115710.0,0.68102428]
[1758343288462,0.03316703,115720.0,115710.0,0.68102428]
[1758343288784,0.35611804,115720.0,115710.0,0.68102428]
[1758343290364,0.35611804,115720.0,115710.0,0.68304428]
[1758343291821,0.03316703,115720.0,115710.0,0.68304428]
[1758343291993,0.35611804,115720.0,115710.0,0.68304428]
[1758343292979,0.33228804,115720.0,115710.0,0.41380428]
[1758343293180,0.35506804,115720.0,115710.0,0.68102428]
[1758343294195,0.03211703,115720.0,115710.0,0.68102428]
[1758343294396,0.35506804,115720.0,115710.0,0.68102428]
[1758343295138,0.00404703,115720.0,115710.0,0.68603428]
[1758343295324,0.00404703,115720.0,115710.0,1.03023529]
[1758343295739,0.00404703,115720.0,115710.0,0.70728428]
[1758343295740,0.00614703,115720.0,115710.0,0.70728428]
[1758343296655,0.02892703,115720.0,115710.0,0.70728428]
[1758343297068,0.35187804,115720.0,115710.0,0.70728428]
[1758343302094,0.35187804,115720.0,115710.0,0.97538428]
[1758343305938,0.02892703,115720.0,115710.0,0.97538428]
[1758343306149,0.00614703,115720.0,115710.0,0.97538428]
[1758343306369,0.00404703,115720.0,115710.0,1.29833529]
[1758343306631,0.00404703,115720.0,115710.0,1.30132529]
[1758343321195,0.00404703,115720.0,115710.0,1.29833529]
[1758343322675,0.00404703,115720.0,115710.0,1.02909529]
[1758343322856,0.00404703,115720.0,115710.0,1.29797529]
[1758343323435,0.00603703,115720.0,115710.0,1.29797529]
[1758343323827,0.00603703,115720.0,115710.0,0.70614428]
[1758343324042,0.03291703,115720.0,115710.0,0.94876428]
[1758343324466,0.03291703,115720.0,115710.0,0.95087428]
[1758343324678,0.02967703,115720.0,115710.0,0.97388428]
[1758343327524,0.00603703,115720.0,115710.0,0.97388428]
[1758343328988,0.00603703,115720.0,115710.0,1.29683529]
[1758343329945,0.00603703,115720.0,115710.0,0.97388428]
[1758343330145,0.00603703,115720.0,115710.0,1.29683529]
[1758343333611,0.00603703,115720.0,115710.0,1.02795529]
[1758343333822,0.00603703,115720.0,115710.0,0.97384428]
[1758343338495,0.00603703,115720.0,115710.0,0.97380428]
[1758343342364,0.00603703,115720.0,115710.0,0.70500428]
[1758343342566,0.00603703,115720.0,115710.0,0.97376428]
[1758343352272,0.00603703,115720.0,115710.0,0.70500428]
[1758343352478,0.00603703,115720.0,115710.0,0.97432428]
[1758343354318,0.00603703,115720.0,115710.0,0.97428428]
[1758343355944,0.00603703,115720.0,115710.0,0.70500428]
[1758343356154,0.03388703,115720.0,115710.0,0.94916428]
[1758343356386,0.03388703,115720.0,115710.0,0.97427428]
[1758343356844,0.03086703,115720.0,115710.0,0.97427428]
[1758343357060,0.00603703,115720.0,115710.0,0.97427428]
[1758343359922,0.00404703,115720.0,115710.0,0.97427428]
[1758343360137,0.00404703,115720.0,115710.0,0.97722428]
[1758343360930,0.00404703,115720.0,115710.0,1.30016847]
[1758343363704,0.00404703,115720.0,115710.0,0.97722428]
[1758343363918,0.00404703,115720.0,115710.0,1.30016847]
[1758343374403,0.00404703,115720.0,115710.0,1.62311266]
[1758343380946,0.00404703,115720.0,115710.0,1.35383266]
[1758343381287,0.00404703,115720.0,115710.0,1.30020847]
[1758343386226,0.00404703,115720.0,115710.0,0.97726428]
[1758343386424,0.00404703,115720.0,115710.0,1.30020847]
[1758343388496,0.00404703,115720.0,115710.0,0.70499428]
[1758343388703,0.00612703,115720.0,115710.0,1.29717847]
[1758343391499,0.00404703,115720.0,115710.0,1.29717847]
[1758343393858,0.00404703,115720.0,115710.0,1.29712392]
[1758343397811,0.00404703,115720.0,115710.0,0.97423428]
[1758343397996,0.00404703,115720.0,115710.0,1.30010392]
[1758343398196,0.00404703,115720.0,115710.0,1.29712392]
[1758343399071,0.00404703,115720.0,115710.0,1.30010392]
[1758343406402,0.00404703,115720.0,115710.0,0.97721428]
[1758343406580,0.00404703,115720.0,115710.0,1.30010392]
[1758343406775,0.00404703,115720.0,115710.0,1.29712392]
[1758343417996,0.00404703,115720.0,115710.0,1.30018392]
[1758343422626,0.00404703,115720.0,115710.0,1.29712392]
[1758343427632,0.00404703,115720.0,115710.0,1.30018392]
[1758343429648,0.00404703,115720.0,115710.0,1.29712392]
[1758343429850,0.00404703,115720.0,115710.0,0.97423428]
[1758343429994,0.00404703,115720.0,115710.0,1.29712392]
[1758343432473,0.00404703,115720.0,115710.0,1.30018392]
[1758343433478,0.00404703,115720.0,115710.0,1.29712392]
[1758343437171,0.00404703,115720.0,115710.0,1.62361356]
[1758343438568,0.00404703,115720.0,115710.0,1.62161356]
[1758343438763,0.00404703,115720.0,115710.0,1.62761356]
[1758343439199,0.00404703,115720.0,115710.0,1.63261356]
[1758343443003,0.00404703,115720.0,115710.0,1.36337356]
[1758343443231,0.00404703,115720.0,115710.0,1.03740392]
[1758343443523,0.03277703,115720.0,115710.0,1.01177392]
[1758343443675,0.03277703,115720.0,115710.0,1.28129392]
[1758343450589,0.03277703,115720.0,115710.0,1.28333392]
[1758343453210,0.03277703,115720.0,115710.0,1.30666392]
[1758343453775,0.02969703,115720.0,115710.0,1.30666392]
[1758343454253,0.02969703,115720.0,115710.0,1.30650392]
[1758343455750,0.03277703,115720.0,115710.0,1.28317878]
[1758343456212,0.03277703,115720.0,115710.0,1.30650878]
[1758343456649,0.02969703,115720.0,115710.0,1.30650878]
[1758343457273,0.00612703,115720.0,115710.0,1.30650878]
[1758343465059,0.00612703,115720.0,115710.0,1.28053197]
[1758343466328,0.00404703,115720.0,115710.0,1.28053197]
[1758343478269,0.03212703,115720.0,115710.0,0.66290747]
[1758343478656,0.03212703,115720.0,115710.0,0.93198747]
[1758343482623,0.03212703,115720.0,115710.0,0.66290747]
[1758343482787,0.03212703,115720.0,115710.0,0.93194747]
[1758343490813,0.03212703,115720.0,115710.0,0.95730747]
[1758343494163,0.00620703,115720.0,115710.0,0.95730747]
[1758343494696,0.02905703,115720.0,115710.0,0.95730747]
[1758343496985,0.00620703,115720.0,115710.0,0.95730747]
[1758343498429,0.00404703,115720.0,115710.0,0.95730747]
[1758343498663,0.00404703,115720.0,115710.0,0.97243022]
[1758343498895,0.00404703,115720.0,115710.0,0.95730747]
[1758343499286,0.00617703,115720.0,115710.0,0.95730747]
[1758343499716,0.02929703,115720.0,115710.0,0.95730747]
[1758343499938,0.03243703,115720.0,115710.0,0.95730747]
[1758343500499,0.00617703,115720.0,115710.0,0.95730747]
[1758343500790,0.00910703,115720.0,115710.0,0.66290747]
[1758343500971,0.03287703,115720.0,115710.0,0.93174747]
[1758343501979,0.03287703,115720.0,115710.0,0.93374747]
[1758343502187,0.03287703,115720.0,115710.0,0.95711747]
[1758343504769,0.02994703,115720.0,115710.0,0.95711747]
[1758343504990,0.00404703,115720.0,115710.0,1.28302197]
[1758343507439,0.00404703,115720.0,115710.0,0.96012747]
[1758343507677,0.00404703,115720.0,115710.0,1.28302197]
[1758343517899,0.00404703,115720.0,115710.0,1.28303768]
[1758343528673,0.00404703,115720.0,115710.0,1.29191691]
[1758343530106,0.00404703,115720.0,115710.0,0.96012747]
[1758343530325,0.00404703,115720.0,115710.0,1.28303768]
[1758343532533,0.00404703,115720.0,115710.0,0.96012747]
[1758343532743,0.00404703,115720.0,115710.0,1.28303768]
[1758343536212,0.00404703,115720.0,115710.0,1.30901325]
[1758343541270,0.00404703,115720.0,115710.0,1.30600325]
[1758343542544,0.00404703,115720.0,115710.0,0.98309304]
[1758343542753,0.03204703,115720.0,115710.0,0.95768304]
[1758343542980,0.03204703,115720.0,115710.0,1.28059325]
[1758343544632,0.03204703,115720.0,115710.0,1.28261325]
[1758343545036,0.03204703,115720.0,115710.0,1.30566325]
[1758343545447,0.03204703,115720.0,115710.0,0.98275304]
[1758343545685,0.03204703,115720.0,115710.0,1.30566325]
[1758343548350,0.03204703,115720.0,115710.0,1.03686325]
[1758343548592,0.02910703,115720.0,115710.0,1.30562325]
[1758343551224,0.00605703,115720.0,115710.0,1.30562325]
[1758343551423,0.00605703,115720.0,115710.0,0.98271304]
[1758343551647,0.00605703,115720.0,115710.0,1.30562325]
[1758343552273,0.00899703,115720.0,115710.0,0.95764304]
[1758343552487,0.00899703,115720.0,115710.0,1.25659768]
[1758343553153,0.03204703,115720.0,115710.0,1.25659768]
[1758343553400,0.02910703,115720.0,115710.0,1.27964768]
[1758343555039,0.00605703,115720.0,115710.0,1.27964768]
[1758343569459,0.00605703,115720.0,115710.0,0.95673747]
[1758343569645,0.00605703,115720.0,115710.0,1.27964768]
[1758343570197,0.00404703,115720.0,115710.0,0.95771747]
[1758343570367,0.00404703,115720.0,115710.0,1.28062768]
[1758343579961,0.00404703,115720.0,115710.0,0.95771747]
[1758343585395,0.0300226,115720.0,115710.0,0.98369303]
[1758343586288,0.0320826,115720.0,115710.0,0.71493303]
[1758343586517,0.0320826,115720.0,115710.0,0.98381303]
[1758343588642,0.0300226,115720.0,115710.0,0.98381303]
[1758343592841,0.0300226,115720.0,115710.0,0.98686303]
[1758343595973,0.0300226,115720.0,115710.0,1.3097962]
[1758343599561,0.0300226,115720.0,115710.0,0.98686303]
[1758343599770,0.0300226,115720.0,115710.0,1.3097962]
[1758343600381,0.0300226,115720.0,115710.0,0.98686303]
[1758343600632,0.0300226,115720.0,115710.0,1.3097962]
[1758343601016,0.0300226,115720.0,115710.0,1.3067462]
[1758343601210,0.0320826,115720.0,115710.0,1.3067462]
[1758343601410,0.0320826,115720.0,115710.0,0.98381303]
[1758343601960,0.0300226,115720.0,115710.0,0.98381303]
[1758343603272,0.0300226,115720.0,115710.0,1.3067462]
[1758343604777,0.0320826,115720.0,115710.0,1.3067462]
[1758343605302,0.0595226,115720.0,115710.0,1.2806962]
[1758343605524,0.0595226,115720.0,115710.0,1.2827762]
[1758343605761,0.0595226,115720.0,115710.0,1.3072862]
[1758343605945,0.0320826,115720.0,115710.0,1.3072862]
[1758343606145,0.0563426,115720.0,115710.0,1.3072862]
[1758343607812,0.0320826,115720.0,115710.0,1.3072862]
[1758343612297,0.0320826,115720.0,115710.0,0.98435303]
[1758343616263,0.0587526,115720.0,115710.0,0.98435303]
[1758343617061,0.0320826,115720.0,115710.0,0.98435303]
[1758343617209,0.0556126,115720.0,115710.0,0.98435303]
[1758343618614,0.0320826,115720.0,115710.0,0.98435303]
[1758343621973,0.0547126,115720.0,115710.0,0.98435303]
[1758343622176,0.0577926,115720.0,115710.0,0.95984303]
[1758343622540,0.0351626,115720.0,115710.0,0.95776303]
[1758343622772,0.0577926,115720.0,115710.0,0.95776303]
[1758343625960,0.0547126,115720.0,115710.0,0.95989303]
[1758343626168,0.0547126,115720.0,115710.0,0.98352303]
[1758343632913,0.0320826,115720.0,115710.0,0.98352303]
[1758343636529,0.0320826,115720.0,115710.0,0.95754747]
[1758343636758,0.0547126,115720.0,115710.0,0.95754747]
[1758343637507,0.0320826,115720.0,115710.0,0.95754747]
[1758343639462,0.0351626,115720.0,115710.0,0.66503747]
[1758343639668,0.0547126,115720.0,115710.0,0.93387747]
[1758343639869,0.0320826,115720.0,115710.0,1.2804515]
[1758343640301,0.0320826,115720.0,115710.0,0.95750747]
[1758343646095,0.0320826,115720.0,115710.0,1.2804515]
[1758343646555,0.0300226,115720.0,115710.0,1.2834315]
[1758343650381,0.0300226,115720.0,115710.0,0.96048747]
[1758343650712,0.0300226,115720.0,115710.0,1.2834315]